fUSD/lending_fUSD_20250811
["ID","MTS","AMOUNT","RATE_DAILY","PERIOD"]
[378479658,1754881839046,-447.0,0.00018853,2]
[378479660,1754881839055,-895.38,0.00018853,2]
[378479662,1754881839065,-400.86127178,0.00018853,2]
[378479664,1754881839075,-431.67,0.00018853,2]
[378479666,1754881839085,-400.0,0.00018853,2]
[378479668,1754881839094,-400.0,0.00018853,2]
[378479670,1754881839104,-436.03,0.00018853,2]
[378479672,1754881839113,-400.0,0.00018853,2]
[378479674,1754881839122,-504.14,0.00018853,2]
[378479676,1754881839132,-517.0,0.00018853,2]
[378479678,1754881839142,-1205.97,0.00018853,2]
[378479680,1754881839152,-526.51,0.00018853,2]
[378479682,1754881839161,-481.21,0.00018853,2]
[378479684,1754881839171,-1108.0,0.00018853,2]
[378479686,1754881839180,-495.13,0.00018853,2]
[378479688,1754881839191,-400.0,0.00018853,2]
[378479690,1754881839203,-769.89,0.00018853,2]
[378479692,1754881839213,-400.0,0.00018853,2]
[378479694,1754881839224,-400.0,0.00018853,2]
[378479696,1754881839235,-2853.86,0.00018853,2]
[378479699,1754881839245,-400.0,0.00018853,2]
[378479701,1754881839255,-400.0,0.00018853,2]
[378479703,1754881839265,-403.56537614,0.00018853,2]
[378479704,1754881839275,-400.0,0.00018853,2]
[378479707,1754881839287,-2595.81,0.00018853,2]
[378479709,1754881839298,-1487.84,0.00018853,2]
[378479710,1754881839308,-400.0,0.00018853,2]
[378479712,1754881839319,-2114.11,0.00018853,2]
[378479714,1754881839331,-407.61615852,0.00018853,2]
[378479716,1754881839342,-400.0,0.00018853,2]
[378479718,1754881839353,-400.0,0.00018853,2]
[378479720,1754881839364,-400.0,0.00018853,2]
[378479722,1754881839376,-400.0,0.00018853,2]
[378479724,1754881839391,-400.0,0.00018853,2]
[378479726,1754881839403,-654.85,0.00018853,2]
[378479728,1754881839414,-860.06,0.00018853,2]
[378479731,1754881839428,-400.0,0.00018853,2]
[378479733,1754881839440,-400.0,0.00018853,2]
[378479735,1754881839453,-400.0,0.00018853,2]
[378479737,1754881839465,-2767.57,0.00018853,2]
[378479739,1754881839480,-400.0,0.00018853,2]
[378479741,1754881839492,-2412.66,0.00018853,2]
[378479743,1754881839506,-768.46,0.00018853,2]
[378479745,1754881839517,-400.0,0.00018853,2]
[378479747,1754881839531,-400.0,0.00018853,2]
[378479749,1754881839541,-624.89,0.00018853,2]
[378479752,1754881839551,-400.0,0.00018853,2]
[378479753,1754881839560,-400.0,0.00018853,2]
[378479756,1754881839570,-574.78,0.00018853,2]
[378479757,1754881839579,-882.04,0.00018853,2]
[378479760,1754881839589,-400.0,0.00018853,2]
[378479762,1754881839600,-400.0,0.00018853,2]
[378479764,1754881839610,-687.5,0.00018853,2]
[378479766,1754881839619,-937.38,0.00018853,2]
[378479768,1754881839629,-405.08740656,0.00018853,2]
[378479770,1754881839639,-10828.71,0.00018853,2]
[378479772,1754881839648,-233.93418876,0.00018853,2]
[378479774,1754881839658,-400.0,0.00018853,2]
[378479776,1754881839667,-1117.39,0.00018853,2]
[378479778,1754881839677,-402.65261491,0.00018853,2]
[378479780,1754881839687,-400.0,0.00018853,2]
[378479782,1754881839697,-400.0,0.00018853,2]
[378479784,1754881839706,-1141.14,0.00018853,2]
[378479786,1754881839716,-400.0,0.00018853,2]
[378479788,1754881839727,-404.08442056,0.00018853,2]
[378479790,1754881839737,-400.0,0.00018853,2]
[378479792,1754881839746,-403.59548231,0.00018853,2]
[378479794,1754881839755,-531.11,0.00018853,2]
[378479796,1754881839763,-567.78,0.00018853,2]
[378479798,1754881839772,-774.05,0.00018853,2]
[378479800,1754881839781,-400.0,0.00018853,2]
[378479802,1754881839790,-1114.8,0.00018853,2]
[378479804,1754881839800,-421.84,0.00018853,2]
[378479806,1754881839810,-400.0,0.00018853,2]
[378479808,1754881839820,-401.83779439,0.00018854,2]
[378479810,1754881839830,-400.0,0.00018854,2]
[378479812,1754881839840,-401.33706087,0.00018854,2]
[378479814,1754881839850,-400.0,0.00018854,2]
[378479816,1754881839859,-423.92,0.00018854,2]
[378479818,1754881839870,-400.0,0.00018854,2]
[378479820,1754881839879,-400.0,0.00018854,2]
[378479822,1754881839889,-400.0,0.00018854,2]
[378479824,1754881839899,-642.36,0.00018854,2]
[378479826,1754881839908,-400.0,0.00018854,2]
[378479828,1754881839918,-924.47,0.00018854,2]
[378479830,1754881839928,-848.15,0.00018854,2]
[378479832,1754881839937,-400.0,0.00018854,2]
[378479834,1754881839948,-400.0,0.00018854,2]
[378479836,1754881839958,-530.19,0.00018854,2]
[378479838,1754881839967,-975.09,0.00018854,2]
[378479840,1754881839979,-919.38,0.00018854,2]
[378479842,1754881839988,-400.0,0.00018854,2]
[378479844,1754881839998,-400.0,0.00018854,2]
[378479846,1754881840008,-1573.91,0.00018854,2]
[378479848,1754881840018,-613.51,0.00018854,2]
[378479850,1754881840027,-400.0,0.00018854,2]
[378479852,1754881840037,-520.61,0.00018854,2]
[378479855,1754881840047,-400.0,0.00018854,2]
[378479857,1754881840057,-400.0,0.00018854,2]
[378479859,1754881840066,-1154.06,0.00018854,2]
[378479860,1754881840076,-930.4,0.00018854,2]
[378479863,1754881840085,-1056.12349987,0.00018854,2]
[378479914,1754881840729,-612.13650013,0.00018854,2]
[378479915,1754881840739,-814.73,0.00018854,2]
[378479917,1754881840749,-1217.15,0.00018854,2]
[378479919,1754881840758,-291.2990269,0.00018854,2]
[378479923,1754881840786,-761.1801018,0.00018854,2]
[378479929,1754881840833,-296.0765777,0.00018852,2]
[378479931,1754881840850,-246.22191103,0.00018852,2]
[378479933,1754881840860,-268.01856263,0.00018853,2]
[378480107,1754881842534,-595.794767,0.00018852,2]
[378480109,1754881842544,-400.0,0.00018852,2]
[378480111,1754881842553,-135.22427748,0.00018853,2]
[378480113,1754881842563,-400.0,0.00018853,2]
[378480116,1754881842573,-400.0,0.00018853,2]
[378480118,1754881842583,-301.9708713,0.00018854,2]
[378480120,1754881842592,-905.57,0.00018854,2]
[378480122,1754881842602,-847.99,0.00018854,2]
[378480124,1754881842611,-814.27,0.00018854,2]
[378480126,1754881842620,-413.16,0.00018854,2]
[378480129,1754881842629,-634.5,0.00018854,2]
[378480131,1754881842638,-576.1,0.00018854,2]
[378480133,1754881842647,-997.49,0.00018854,2]
[378480136,1754881842657,-400.0,0.00018854,2]
[378480138,1754881842666,-487.49564706,0.00018854,2]
[378480186,1754881842931,-110.73435294,0.00018854,2]
[378480188,1754881842940,-870.81,0.00018854,2]
[378480190,1754881842949,-426.04,0.00018854,2]
[378480192,1754881842959,-1751.3,0.00018854,2]
[378480194,1754881842968,-533.87,0.00018854,2]
[378480196,1754881842978,-400.0,0.00018854,2]
[378480198,1754881842988,-1633.85,0.00018854,2]
[378480200,1754881842997,-545.11,0.00018854,2]
[378480202,1754881843007,-991.83,0.00018854,2]
[378480204,1754881843016,-415.73,0.00018854,2]
[378480206,1754881843026,-660.71,0.00018854,2]
[378480208,1754881843035,-300.61564706,0.00018854,2]
[378480212,1754881843061,-99.38435294,0.00018854,2]
[378480214,1754881843070,-426.68,0.00018854,2]
[378480215,1754881843080,-318.21064706,0.00018854,2]
[378480217,1754881843092,-81.78935294,0.00018854,2]
[378480220,1754881843101,-1022.33,0.00018854,2]
[378480222,1754881843111,-265.83107314,0.00018854,2]
[378480224,1754881843121,-400.0,0.00018854,2]
[378480226,1754881843130,-669.04957382,0.00018854,2]
[378480228,1754881843141,-1000.77042618,0.00018854,2]
[378480230,1754881843150,-1433.98,0.00018854,2]
[378480232,1754881843160,-529.48,0.00018854,2]
[378480234,1754881843169,-400.0,0.00018854,2]
[378480236,1754881843179,-850.56,0.00018854,2]
[378480238,1754881843190,-500.0,0.00018854,2]
[378480240,1754881843201,-578.89,0.00018854,2]
[378480242,1754881843210,-400.0,0.00018854,2]
[378480244,1754881843219,-929.52,0.00018854,2]
[378480246,1754881843231,-400.0,0.00018854,2]
[378480248,1754881843241,-2484.75,0.00018854,2]
[378480250,1754881843250,-1331.74,0.00018854,2]
[378480252,1754881843260,-1782.83,0.00018854,2]
[378480254,1754881843269,-706.84,0.00018854,2]
[378480256,1754881843281,-500.0,0.00018855,2]
[378480258,1754881843290,-640.59,0.00018855,2]
[378480260,1754881843300,-400.0,0.00018855,2]
[378480262,1754881843310,-417.64,0.00018855,2]
[378480265,1754881843320,-1327.69,0.00018855,2]
[378480267,1754881843329,-1317.28,0.00018855,2]
[378480270,1754881843339,-493.32,0.00018855,2]
[378480272,1754881843348,-842.86497659,0.00018867,2]
[378480274,1754881843358,-457.87080987,0.00018867,2]
[378480276,1754881843368,-211.73953792,0.00018867,2]
[378480278,1754881843377,-232.42061673,0.00018867,2]
[378480280,1754881843387,-558.34660855,0.00018867,2]
[378480282,1754881843397,-500.0,0.00018873,2]
[378480284,1754881843406,-500.0,0.00018873,2]
[378480286,1754881843416,-500.0,0.00018873,2]
[378480288,1754881843426,-500.0,0.00018873,2]
[378480290,1754881843437,-232.42061673,0.00018884,2]
[378480292,1754881843446,-558.34660855,0.00018884,2]
[378480294,1754881843456,-813.0,0.000189,2]
[378480296,1754881843466,-3383.726,0.000189,2]
[378480298,1754881843477,-1253.0,0.000189,2]
[378480300,1754881843489,-957.0,0.000189,2]
[378480302,1754881843499,-2027.0,0.000189,2]
[378480304,1754881843508,-175070.41065641,0.000189,2]
[378480306,1754881843519,-598.0,0.000189,2]
[378480309,1754881843529,-1295.0,0.000189,2]
[378480311,1754881843539,-565.0,0.000189,2]
[378480313,1754881843549,-959.0,0.000189,2]
[378480315,1754881843559,-1654.0,0.000189,2]
[378480317,1754881843569,-232.42061673,0.000189,2]
[378480319,1754881843579,-1181.48,0.000189,2]
[378480321,1754881843588,-1181.48,0.000189,2]
[378480323,1754881843598,-172.21,0.000189,2]
[378480325,1754881843608,-558.34660855,0.000189,2]
[378480327,1754881843617,-1181.48,0.000189,2]
[378480329,1754881843627,-6082.0,0.000189,2]
[378480331,1754881843637,-716.0,0.000189,2]
[378480333,1754881843647,-4145.0,0.000189,2]
[378480335,1754881843657,-1171.0,0.000189,2]
[378480337,1754881843667,-1181.48,0.00018906,2]
[378480339,1754881843677,-487.31868,0.0001892,2]
[378480341,1754881843687,-10091.12728108,0.00018945,2]
[378480344,1754881843697,-5224.73899974,0.00018945,2]
[378480346,1754881843707,-10091.12728108,0.00018948,2]
[378480348,1754881843716,-2693.48627808,0.0001895,2]
[378480350,1754881843726,-9821.75899475,0.0001895,2]
[378480352,1754881843737,-303.33591159,0.00018952,2]
[378480354,1754881843747,-5224.73899974,0.00018954,2]
[378480356,1754881843757,-9821.75899475,0.00018956,2]
[378480358,1754881843767,-2693.48627808,0.00018957,2]
[378480360,1754881843776,-67434.003166,0.00018957,2]
[378480362,1754881843787,-2693.48627808,0.00018958,2]
[378480364,1754881843797,-5224.73899974,0.00018963,2]
[378480366,1754881843807,-303.33591159,0.00018963,2]
[378480368,1754881843817,-10091.12728108,0.00018965,2]
[378480371,1754881843827,-67434.003166,0.00018966,2]
[378480372,1754881843836,-303.33591159,0.00018968,2]
[378480375,1754881843847,-5224.73899974,0.00018969,2]
[378480378,1754881843857,-500.0,0.00018973,2]
[378480380,1754881843867,-500.0,0.00018973,2]
[378480382,1754881843876,-500.0,0.00018973,2]
[378480384,1754881843886,-500.0,0.00018973,2]
[378480386,1754881843895,-500.0,0.00018973,2]
[378480388,1754881843905,-500.0,0.00018973,2]
[378480390,1754881843915,-500.0,0.00018973,2]
[378480392,1754881843924,-500.0,0.00018973,2]
[378480394,1754881843933,-501.20244797,0.00018973,2]
[378480396,1754881843943,-160.30038782,0.00018973,2]
[378480398,1754881843953,-500.0,0.00018973,2]
[378480400,1754881843962,-503.15014373,0.00018973,2]
[378480403,1754881843978,-500.0,0.00018973,2]
[378480405,1754881843989,-165.29135572,0.00018973,2]
[378480407,1754881844000,-500.15179162,0.00018973,2]
[378480409,1754881844011,-500.0,0.00018973,2]
[378480411,1754881844022,-500.0,0.00018973,2]
[378480413,1754881844033,-500.98663761,0.00018973,2]
[378480415,1754881844044,-500.0,0.00018973,2]
[378480418,1754881844055,-500.0,0.00018973,2]
[378480420,1754881844066,-500.0,0.00018973,2]
[378480422,1754881844077,-500.0,0.00018973,2]
[378480424,1754881844089,-500.0,0.00018973,2]
[378480426,1754881844101,-500.0,0.00018973,2]
[378480428,1754881844111,-500.0,0.00018973,2]
[378480429,1754881844122,-186.563,0.00018973,2]
[378480430,1754881844134,-1632.811,0.00018973,2]
[378480431,1754881844145,-5224.73899974,0.00018973,2]
[378480432,1754881844155,-303.33591159,0.00018974,2]
[378480433,1754881844167,-67434.003166,0.00018975,2]
[378480434,1754881844178,-10091.12728108,0.00018977,2]
[378480435,1754881844191,-9821.75899475,0.00018979,2]
[378480436,1754881844202,-9821.75899475,0.00018986,2]
[378480437,1754881844212,-9821.75899475,0.00018987,2]
[378480438,1754881844223,-741.0,0.00018988,2]
[378480439,1754881844236,-500.0,0.00018988,2]
[378480441,1754881844247,-150.0,0.00018988,2]
[378480443,1754881844257,-150.0,0.00018988,2]
[378480445,1754881844267,-150.0,0.00018988,2]
[378480447,1754881844280,-150.0,0.00018988,2]
[378480449,1754881844290,-150.0,0.00018988,2]
[378480451,1754881844300,-150.0,0.00018988,2]
[378480453,1754881844311,-155.02987088,0.00018988,2]
[378480455,1754881844322,-150.0,0.00018988,2]
[378480457,1754881844332,-150.0,0.00018988,2]
[378480460,1754881844343,-500.0,0.00018988,2]
[378480462,1754881844352,-150.0,0.00018988,2]
[378480464,1754881844362,-875.0,0.00018988,2]
[378480466,1754881844372,-593.0,0.00018988,2]
[378480468,1754881844382,-204.83777611,0.00018988,2]
[378480470,1754881844392,-150.0,0.00018988,2]
[378480472,1754881844402,-150.0,0.00018988,2]
[378480474,1754881844412,-500.0,0.00018988,2]
[378480476,1754881844423,-500.0,0.00018988,2]
[378480478,1754881844434,-500.0,0.00018988,2]
[378480480,1754881844444,-154.81983456,0.00018988,2]
[378480483,1754881844454,-500.0,0.00018988,2]
[378480485,1754881844464,-500.0,0.00018988,2]
[378480487,1754881844476,-150.0,0.00018988,2]
[378480489,1754881844486,-500.0,0.00018988,2]
[378480491,1754881844496,-207.05550822,0.00018988,2]
[378480493,1754881844506,-10091.12728108,0.00018989,2]
[378480495,1754881844517,-4211.3868172,0.00018989,2]
[378480497,1754881844527,-2693.48627808,0.0001899,2]
[378480499,1754881844537,-107142.5817346,0.0001899,5]
[378480501,1754881844548,-67434.003166,0.00018991,2]
[378480503,1754881844558,-67434.003166,0.00018995,2]
[378480505,1754881844568,-946.95097409,0.00018997,5]
[378480507,1754881844578,-400.0,0.00018998,2]
[378480508,1754881844589,-724.47,0.00018998,2]
[378480509,1754881844598,-666.92,0.00018998,2]
[378480510,1754881844608,-2125.79,0.00018998,2]
[378480511,1754881844618,-400.0,0.00018998,2]
[378480512,1754881844628,-500.0,0.00018998,2]
[378480513,1754881844638,-476.34,0.00018998,2]
[378480514,1754881844648,-449.52,0.00018998,2]
[378480515,1754881844658,-400.0,0.00018998,2]
[378480516,1754881844668,-468.33,0.00018998,2]
[378480517,1754881844678,-531.3,0.00018998,2]
[378480518,1754881844688,-628.47,0.00018998,2]
[378480519,1754881844698,-2166.47,0.00018998,2]
[378480520,1754881844708,-400.0,0.00018998,2]
[378480521,1754881844718,-2396.41,0.00018998,2]
[378480522,1754881844730,-932.04,0.00018998,2]
[378480523,1754881844740,-1465.27,0.00018998,2]
[378480524,1754881844751,-706.03,0.00018998,2]
[378480525,1754881844762,-400.0,0.00018998,2]
[378480526,1754881844772,-400.0,0.00018998,2]
[378480527,1754881844782,-1121.1,0.00018998,2]
[378480528,1754881844792,-1294.28,0.00018998,2]
[378480529,1754881844802,-1514.68,0.00018998,2]
[378480530,1754881844812,-705.74,0.00018998,2]
[378480531,1754881844822,-3334.13,0.00018998,2]
[378480532,1754881844832,-3134.86,0.00018998,2]
[378480534,1754881844842,-1136.95,0.00018998,2]
[378480536,1754881844852,-1787.27,0.00018998,2]
[378480537,1754881844863,-840.8,0.00018998,2]
[378480538,1754881844873,-193.92007664,0.00018998,2]
[378480539,1754881844883,-400.0,0.00018998,2]
[378480540,1754881844894,-512.04,0.00018998,2]
[378480541,1754881844904,-400.0,0.00018998,2]
[378480542,1754881844914,-2240.05,0.00018998,2]
[378480543,1754881844924,-1590.69,0.00018998,2]
[378480544,1754881844933,-2096.93,0.00018998,2]
[378480545,1754881844943,-1395.19,0.00018998,2]
[378480546,1754881844953,-2693.48627808,0.00018998,2]
[378480547,1754881844963,-1000.0,0.00018999,2]
[378480548,1754881844973,-1000.0,0.00018999,2]
[378480549,1754881844984,-1000.0,0.00018999,2]
[378480550,1754881844994,-500.0,0.00018999,2]
[378480552,1754881845004,-1000.0,0.00018999,2]
[378480553,1754881845014,-500.0,0.00018999,2]
[378480554,1754881845024,-500.0,0.00018999,2]
[378480555,1754881845035,-500.0,0.00018999,2]
[378480556,1754881845045,-553.6988303,0.00018999,2]
[378480557,1754881845056,-1000.0,0.00018999,2]
[378480558,1754881845067,-1000.0,0.00018999,2]
[378480559,1754881845076,-150.0,0.00018999,2]
[378480560,1754881845086,-1000.0,0.00018999,2]
[378480561,1754881845098,-150.0,0.00018999,2]
[378480562,1754881845109,-1007.3093,0.00018999,2]
[378480563,1754881845119,-29996.76218419,0.00018999,2]
[378480565,1754881845129,-116666.41710467,0.00018999,7]
[378480566,1754881845139,-4643.68,0.00018999,2]
[378480567,1754881845149,-457.87080987,0.00018999,7]
[378480569,1754881845159,-1476.97,0.00018999,2]
[378480571,1754881845170,-400.0,0.00018999,2]
[378480573,1754881845180,-1696.06,0.00018999,2]
[378480575,1754881845190,-1959.94,0.00018999,2]
[378480577,1754881845201,-1687.66,0.00018999,2]
[378480579,1754881845212,-211.73953792,0.00018999,7]
[378480581,1754881845222,-1514.68,0.00018999,2]
[378480583,1754881845233,-509.52,0.00018999,2]
[378480585,1754881845243,-1514.68,0.00018999,2]
[378480587,1754881845252,-1514.68,0.00018999,2]
[378480589,1754881845262,-1514.68,0.00018999,2]
[378480591,1754881845272,-1514.68,0.00018999,2]
[378480593,1754881845283,-1514.68,0.00018999,2]
[378480595,1754881845293,-1514.68,0.00018999,2]
[378480597,1754881845303,-1514.68,0.00018999,2]
[378480599,1754881845313,-1514.68,0.00018999,2]
[378480602,1754881845323,-1514.68,0.00018999,2]
[378480604,1754881845333,-1514.68,0.00018999,2]
[378480606,1754881845343,-1514.68,0.00018999,2]
[378480608,1754881845353,-1514.68,0.00018999,2]
[378480610,1754881845363,-1514.68,0.00018999,2]
[378480612,1754881845373,-1514.68,0.00018999,2]
[378480614,1754881845383,-1514.68,0.00018999,2]
[378480616,1754881845392,-1514.68,0.00018999,2]
[378480618,1754881845402,-1514.68,0.00018999,2]
[378480620,1754881845412,-1514.68,0.00018999,2]
[378480622,1754881845422,-1514.68,0.00018999,2]
[378480624,1754881845433,-1514.68,0.00018999,2]
[378480626,1754881845443,-1514.68,0.00018999,2]
[378480628,1754881845453,-1514.76828494,0.00018999,2]
[378480630,1754881845463,-1198.03,0.00018999,2]
[378480632,1754881845473,-2262.71,0.00018999,2]
[378480635,1754881845485,-2022.69,0.00018999,2]
[378480637,1754881845496,-150.0,0.00018999,2]
[378480639,1754881845506,-199.55272616,0.00018999,2]
[378480641,1754881845516,-1584.79,0.00018999,2]
[378480644,1754881845525,-671.27430589,0.00018999,2]
[378480646,1754881845535,-300.0,0.00018999,2]
[378480649,1754881845545,-300.0,0.00018999,2]
[378480651,1754881845554,-300.0,0.00018999,2]
[378480654,1754881845564,-303.33591159,0.00018999,2]
[378480656,1754881845574,-1429734.7096358,0.00019,2]
[378480659,1754881845584,-25058.56795351,0.00019,2]
[378480661,1754881845594,-5000.0,0.00019,4]
[378480664,1754881845605,-1243714.98970384,0.00019,2]
[378480674,1754881845703,-1217.55235271,0.00019,2]
[378480676,1754881845719,-450.89674166,0.00019,2]
[378480740,1754881846452,229.86,0.00013699,2]
[378480831,1754881847463,-306.16633046,0.00018595,2]
[378481034,1754881910591,370.0,0.00021,30]
[378481054,1754882129205,-2472.78,0.00018009,2]
[378481055,1754882134327,336.50070388,0.00030136,120]
[378481057,1754882136943,-1409.64,0.00018009,2]
[378481060,1754882143844,-1298.78,0.00018009,2]
[378481061,1754882150676,-500.97,0.00018009,2]
[378481062,1754882157485,-1088.22,0.00018009,2]
[378481064,1754882164307,-400.0,0.00018009,2]
[378481067,1754882170685,1801.388345,7.945e-05,2]
[378481068,1754882171243,-936.58,0.00018009,2]
[378481070,1754882181878,-1199.47,0.00018009,2]
[378481072,1754882188062,-402.96,0.00018009,2]
[378481074,1754882191450,1700.0,0.00018005,2]
[378481080,1754882197970,-1356.51,0.00018009,2]
[378481081,1754882204770,-1974.16,0.00018009,2]
[378481084,1754882211654,-1299.53141111,0.00018009,2]
[378481087,1754882219823,-400.0,0.00018009,2]
[378481089,1754882226833,-1197.88,0.00018009,2]
[378481093,1754882236591,-763.52,0.00018009,2]
[378481095,1754882243908,-1729.51,0.00018009,2]
[378481096,1754882250711,-759.73,0.00018009,2]
[378481103,1754882258840,-495.8,0.00018009,2]
[378481104,1754882266926,-428.46,0.00018009,2]
[378481107,1754882274824,-1192.64,0.00018009,2]
[378481108,1754882284695,-400.0,0.00018009,2]
[378481110,1754882291479,-400.0,0.00018009,2]
[378481113,1754882298881,-472.88,0.00018009,2]
[378481116,1754882307598,-763.58,0.00018009,2]
[378481118,1754882315845,-400.0,0.00018009,2]
[378481121,1754882344476,5164.47,0.00017951,2]
[378481129,1754882386660,189.13,0.00017946,2]
[378481135,1754882429688,1000.0,0.00017879,2]
[378481137,1754882435794,156.98,0.00017884,2]
[378481145,1754882460427,500.0,0.00030136,120]
[378481146,1754882460720,500.0,0.00030136,120]
[378481147,1754882460972,227.03,0.00030136,120]
[378481150,1754882479809,218.93822032,0.00030137,120]
[378481169,1754882535472,505.0,0.00017595,2]
[378481172,1754882548323,616.11,0.00017903,2]
[378481177,1754882560184,462.53,0.00017903,2]
[378481200,1754882640777,150.0,0.00017896,2]
[378481244,1754882783997,243.01,0.00016712,2]
[378481248,1754882806636,514.00006,0.00017595,2]
[378481268,1754882850583,3065.09,0.00017863,2]
[378481295,1754882890584,234.14,0.00013699,2]
[378481303,1754882909095,250.0,0.00017858,2]
[378481315,1754882922679,250.0,0.00015,2]
[378481335,1754882952228,167.35,0.00017842,2]
[378481343,1754882961246,543.35,0.00017903,2]
[378481368,1754883016265,3635.09865749,0.00017841,2]
[378481369,1754883016294,177.88134251,0.00017841,2]
[378481391,1754883032128,-156.39858889,0.00018009,2]
[378481392,1754883032139,-300.0,0.00018011,2]
[378481393,1754883032148,-44.0777096,0.00018437,2]
[378481394,1754883032159,-123.2622904,0.00018437,2]
[378481395,1754883032169,-5203.02101574,0.00018567,2]
[378481399,1754883032815,-18105.97898426,0.00018567,2]
[378481400,1754883032824,-251.11590643,0.00018665,2]
[378481401,1754883032834,-522.77,0.00018674,2]
[378481402,1754883032843,-195.33297239,0.00018752,2]
[378481403,1754883032853,-1200.0,0.00018752,2]
[378481404,1754883032863,-300.0,0.00018752,2]
[378481405,1754883032872,-356.5696,0.00018753,2]
[378481406,1754883032881,-5232.5,0.00018753,2]
[378481407,1754883032891,-4014.28825949,0.00018753,2]
[378481408,1754883032900,-209.1286623,0.00018753,2]
[378481409,1754883032909,-4014.28825948,0.00018769,2]
[378481410,1754883032918,-196.43280686,0.00018782,2]
[378481411,1754883032927,-3462.83734917,0.00018786,2]
[378481412,1754883032939,-551.45091031,0.00018786,2]
[378481413,1754883032950,-231.28369723,0.00018799,2]
[378481414,1754883032959,-1659.7617286,0.00018799,2]
[378481415,1754883032968,-4014.28825948,0.00018802,2]
[378481416,1754883032983,-487.31869,0.0001881,2]
[378481417,1754883032992,-487.31868,0.0001881,2]
[378481418,1754883033001,-487.31868,0.0001881,2]
[378481419,1754883033011,-309.83456,0.0001881,2]
[378481420,1754883033020,-4014.28825948,0.00018818,2]
[378481421,1754883033030,-4014.28825948,0.00018835,2]
[378481422,1754883033041,-196.43280685,0.00018841,2]
[378481423,1754883033051,-160.0,0.00018842,2]
[378481424,1754883033061,-279.15,0.00018842,2]
[378481425,1754883033070,-189.13,0.00018844,2]
[378481426,1754883033080,-850.0,0.0001885,2]
[378481427,1754883033089,-177.64154699,0.00018851,2]
[378481428,1754883033099,-500.0,0.00018851,2]
[378481429,1754883033108,-208.81415807,0.00018851,2]
[378481430,1754883033117,-4014.28825948,0.00018851,2]
[378481431,1754883033127,-400.0,0.00018851,2]
[378481432,1754883033137,-400.0,0.00018851,2]
[378481433,1754883033147,-400.0,0.00018851,2]
[378481434,1754883033157,-400.0,0.00018851,2]
[378481435,1754883033167,-1005.73,0.00018851,2]
[378481436,1754883033176,-400.0,0.00018851,2]
[378481437,1754883033186,-455.01058041,0.00018851,2]
[378481438,1754883033196,-455.72,0.00018852,2]
[378481439,1754883033206,-406.38784225,0.00018852,2]
[378481440,1754883033216,-475.24,0.00018852,2]
[378481441,1754883033226,-400.0,0.00018852,2]
[378481442,1754883033236,-400.0,0.00018852,2]
[378481443,1754883033246,-705.78,0.00018852,2]
[378481444,1754883033256,-400.0,0.00018852,2]
[378481445,1754883033266,-403.79856117,0.00018852,2]
[378481446,1754883033276,-400.0,0.00018852,2]
[378481447,1754883033288,-436.04,0.00018852,2]
[378481448,1754883033299,-403.57476537,0.00018852,2]
[378481449,1754883033309,-400.0,0.00018852,2]
[378481450,1754883033320,-776.45,0.00018852,2]
[378481451,1754883033331,-400.0,0.00018852,2]